Cogmind - Beta 9.5 @@@ ROGUE MODE // 2020.04.04 @ 22:42:53 Player: Trione Result: Destroyed by G-47 Trooper with Particle Gun Performance ------------- Evolutions (0) 0 Regions Visited (2) 400 Robots Destroyed (30) 150 Value Destroyed (540) 540 Prototype IDs (0) 0 Alien Tech Used (0) 0 Bonus (0) 0 TOTAL SCORE: 1090 Bonus ------- None Cogmind --------- Core Integrity 0/250 Matter 254/300 Energy 113/125 System Corruption 0% Temperature Cool (37) Movement Treading (180) Ox1 Location -10/Mines Parts ------- > --- POWER (1) -------- Light Ion Engine > --- PROPULSION (2) --- Improved Treads Improved Treads > --- UTILITY (2) ------ Large Storage Unit High-capacity Storage Unit > --- WEAPON (2) ------- Heavy EM Pulse Gun Light Assault Rifle > --- INVENTORY (18) --- Light Ion Engine Light Nuclear Core Improved Treads Improved Treads Wheel Wheel Large Storage Unit High-capacity Storage Unit Hacking Suite EM Pulse Gun Heavy EM Pulse Gun Heavy EM Pulse Gun Light Assault Rifle Light Assault Rifle Peak State ------------ > --- POWER ------------ Light Ion Engine > --- PROPULSION ------- Improved Treads Improved Treads > --- UTILITY ---------- Large Storage Unit High-capacity Storage Unit > --- WEAPON ----------- Heavy EM Pulse Gun Light Assault Rifle > --- INVENTORY -------- Light Ion Engine Light Nuclear Core Improved Treads Improved Treads Wheel Wheel Large Storage Unit High-capacity Storage Unit Hacking Suite EM Pulse Gun Heavy EM Pulse Gun Heavy EM Pulse Gun Heavy EM Pulse Gun Light Assault Rifle Light Assault Rifle [Rating: 12] Favorites ----------- Power Ion Engine Engine Ion Engine Propulsion Wheel Treads Light Treads Wheel Wheel Utility High-capacity Storage Unit Storage High-capacity Storage Unit Weapon Light Assault Rifle Energy Gun Medium Laser Ballistic Gun Light Assault Rifle Build | -11 -10 -10 ------- Run | Scr Mat Min Slots Evolved . | . . . Power . | . . . Propulsion . | . . . Utility . | . . . Weapon . | . . . Parts Attached 27 | 6 14 7 Power 2 | 1 . 1 Engine 2 | 1 . 1 Core . | . . . Reactor . | . . . Propulsion 12 | 2 8 2 Treads 6 | . 4 2 Leg . | . . . Wheel 6 | 2 4 . Hover . | . . . Flight . | . . . Utility 3 | 1 2 . Device . | . . . Storage 3 | 1 2 . Processor . | . . . Hackware . | . . . Protection . | . . . Artifact . | . . . Weapon 10 | 2 4 4 Energy Gun 5 | 1 2 2 Energy Cannon . | . . . Ballistic Gun 5 | 1 2 2 Ballistic Cannon . | . . . Launcher . | . . . Special Weapon . | . . . Impact Weapon . | . . . Slashing Weapon . | . . . Piercing Weapon . | . . . Special Melee Weapon . | . . . Unidentified Prototypes . | . . . Parts Lost 9 | . 4 5 Power 1 | . . 1 Propulsion 1 | . 1 . Utility . | . . . Weapon 7 | . 3 4 Highest Loss Streak 2 | . 2 2 Average Slot Usage (%) 96 | . 97 94 Engine 12 | . 14 9 Treads 1 | . 1 3 Wheel 26 | . 26 25 Storage 26 | . 26 28 Energy Gun 13 | . 17 . Ballistic Gun 14 | . 9 27 Naked Turns . | . . . Heaviest Build 57 | 13 57 55 Greatest Support 20 | 20 20 20 Greatest Overweight (x) 5 | . 5 2 Average Overweight (x) 1 | . 1 2 Largest Inventory Capacity 18 | 6 18 18 Average Capacity 16 | 5 16 18 Most Carried 18 | 4 18 16 Average Carried 11 | 2 10 15 Final Capacity 18 | 6 18 18 Final Carried 16 | 4 16 14 Class Distribution -------------------- 100% | Mutant Dominant Class ---------------- Mutant | -10/Materials Mutant | -10/Mines Resources | -11 -10 -10 ----------- Run | Scr Mat Min Matter Collected 531 | 264 205 62 Remotely . | . . . Salvage Created 811 | 57 462 292 Parts 57 | . 41 16 Haulers Intercepted 1 | . 1 . Recyclers Shooed . | . . . Parts Field Recycled . | . . . Retrieved Matter . | . . . Parts Self-Destructed . | . . . Prevented . | . . . Kills | -11 -10 -10 ------- Run | Scr Mat Min Combat Hostiles Destroyed 21 | . 13 8 Guns 20 | . 12 8 AOE 1 | . 1 . Classes Destroyed 7 | 1 6 . Worker 3 | . 2 1 Hauler 1 | . 1 . Recycler 1 | 1 . . Operator 1 | . 1 . Watcher 3 | . 3 . Swarmer 12 | . 9 3 Grunt 9 | . 4 5 Best Kill Streak 5 | 1 5 3 Combat Bots Only 3 | . 3 3 Max Kills in Single Turn 1 | 1 1 1 Gunslinging . | . . . Exploded 1 | . 1 . Melee . | . . . Uniques/NPCs Destroyed . | . . . Combat | -11 -10 -10 -------- Run | Scr Mat Min Damage Taken 1188 | . 568 620 Core 265 | . 103 162 Absorbed by Shields . | . . . Core Remaining (%) 100 | 100 . . Volleys Fired 91 | 3 56 32 Largest 2 | 2 2 2 Hottest 100 | 60 100 65 Shots Fired 171 | 6 101 64 Gun 171 | 6 101 64 Cannon . | . . . Launcher . | . . . Special . | . . . Kinetic 107 | 3 42 62 Thermal 50 | . 50 . Explosive . | . . . Electromagnetic 14 | 3 9 2 Robot Hit Streak 13 | 2 9 13 Robot Miss Streak 4 | 2 4 1 Penetration Max . | . . . Secondary Targets 3 | . 1 2 Max Gunslinging Chain 1 | . 1 1 Shots Hit Robots 111 | 3 63 45 Core Hits 51 | 2 26 23 Critical Hits 1 | . 1 . Critical Kills . | . . . Critical Parts Destroyed 1 | . 1 . Melee Attacks . | . . . Impact . | . . . Slashing . | . . . Piercing . | . . . Sneak Attacks . | . . . Combat Hostiles . | . . . Follow-up Attacks . | . . . Damage Inflicted 1294 | 53 846 395 Guns 1179 | 53 731 395 Cannons . | . . . Explosions 115 | . 115 . Melee . | . . . Ramming . | . . . Kinetic 589 | 26 195 368 Thermal 543 | . 543 . Explosive . | . . . Electromagnetic 162 | 27 108 27 Impact . | . . . Slashing . | . . . Piercing . | . . . Highest Corruption . | . . . Average Corruption . | . . . Corruption Purged . | . . . Overload Shots . | . . . Overflow Damage 18 | . 18 . Projectiles . | . . . Explosions 18 | . 18 . Melee . | . . . Knockbacks . | . . . Impact . | . . . Kinetic . | . . . Secondary . | . . . Self-Inflicted Damage 53 | . 53 . Shots 2 | . 2 . Rammed . | . . . Targets Rammed . | . . . Kicked . | . . . Crushed . | . . . Highest Temperature 178 | . 178 28 Average Temperature 43 | . 51 9 Received Heat Transfer 366 | . 108 258 Siege Activations . | . . . Robots Corrupted . | . . . Combat Hostiles . | . . . Parts Fried . | . . . Impact Corruptions . | . . . Robots Melted . | . . . Combat Hostiles . | . . . Parts Melted 1 | . 1 . Heat Transferred 1408 | . 1408 . Parts Sabotaged . | . . . Parts Stolen . | . . . Parts Stripped . | . . . Power Chain Reactions 2 | . 2 . Missiles Intercepted . | . . . Alert | -11 -10 -10 ------- Run | Scr Mat Min Peak Influence 275 | 5 275 268 Average Influence 128 | 1 120 177 Maximum Alert Level 1 | . 1 1 Low Security (%) 69 | 100 73 53 Level 1 30 | . 26 46 Level 2 . | . . . Level 3 . | . . . Level 4 . | . . . Level 5 . | . . . High Security . | . . . Max Security . | . . . Squads Dispatched 1 | . 1 . Investigation . | . . . Extermination . | . . . Reinforcement 1 | . 1 . Assault . | . . . Garrison . | . . . Intercept . | . . . Construction Impeded . | . . . Haulers Reinforced . | . . . Stealth | -11 -10 -10 --------- Run | Scr Mat Min Distress Signals . | . . . Communications Jammed . | . . . Distress Signals . | . . . Times Spotted 35 | . 24 11 Peak Tracking Total 5 | . 4 5 Tactical Retreats 1 | . 1 . Traps | -11 -10 -10 ------- Run | Scr Mat Min Traps Triggered . | . . . Indirectly . | . . . Trap Hack Attempts . | . . . Triggered . | . . . Disarmed . | . . . Reprogrammed . | . . . Reused . | . . . Traps Extracted . | . . . Installed . | . . . Triggered . | . . . Machines | -11 -10 -10 ---------- Run | Scr Mat Min Machines Disabled . | . . . Max in Single Turn . | . . . Machines Sabotaged . | . . . Garrisons Compromised . | . . . Overloaded Fab Kills . | . . . Fab Network Shutdowns . | . . . Hacking | -11 -10 -10 --------- Run | Scr Mat Min Machines Accessed 5 | . 5 . Terminals 4 | . 4 . Fabricators . | . . . Repair Stations . | . . . Recycling Units 1 | . 1 . Scanalyzers . | . . . Garrison Access . | . . . Total Hacks 9 | . 9 . Successful 4 | . 4 . Failed 5 | . 5 . Catastrophic 1 | . 1 . Database Lockouts . | . . . Manual 8 | . 8 . Terminals 8 | . 8 . Fabricators . | . . . Repair Stations . | . . . Recycling Units 1 | . 1 . Scanalyzers . | . . . Garrison Access . | . . . Terminal Hacks 1 | . 1 . Zone Layout 1 | . 1 . Fabricator Hacks . | . . . Repair Station Hacks . | . . . Recycling Unit Hacks . | . . . Scanalyzer . | . . . Garrison Access Hacks . | . . . Unauthorized Hacks 7 | . 7 . Terminals 3 | . 3 . Track 2 | . 2 . Botnet 1 | . 1 . Fabricators . | . . . Repair Stations . | . . . Recycling Units . | . . . Scanalyzers . | . . . Garrison Access . | . . . Data Cores Recovered 1 | . 1 . Used . | . . . Hacking Detections 4 | . 4 . Full Trace Events . | . . . Feedback Events . | . . . Feedback Blocked . | . . . Robot Schematics Acquired . | . . . Robots Built . | . . . Matter . | . . . Time . | . . . Total Robot Build Rating . | . . . Part Schematics Acquired . | . . . Parts Built . | . . . Matter . | . . . Time . | . . . Total Part Build Rating . | . . . Parts Repaired . | . . . Time . | . . . Parts Recycled . | . . . Recycled Matter . | . . . Retrieved Matter . | . . . Retrieved Components . | . . . Parts Scanalyzed . | . . . Part Schematics Acquired . | . . . Parts Damaged . | . . . Bothacking | -11 -10 -10 ------------ Run | Scr Mat Min Used RIF Installer . | . . . Robots Hacked . | . . . Non-combat . | . . . Combat . | . . . Robot Hacks Applied . | . . . Relay Couplers Released . | . . . Robots Rewired . | . . . Allies Hacked . | . . . Hacks Repelled . | . . . Allies | -11 -10 -10 -------- Run | Scr Mat Min Total Allies . | . . . Largest Group . | . . . Highest-Rated Group . | . . . Highest-Rated Ally . | . . . Total Orders . | . . . Ally Attacks . | . . . Total Damage . | . . . Kills . | . . . Allies Corrupted . | . . . Allies Melted . | . . . Intel | -11 -10 -10 ------- Run | Scr Mat Min Robot Analysis Total . | . . . Derelict Logs Recovered . | . . . Drone Launches . | . . . Drone Recoveries . | . . . Exploration | -11 -10 -10 ------------- Run | Scr Mat Min Turns Passed 1129 | 57 798 274 Spaces Moved 732 | 44 513 175 Core 1 | 1 . . Treads . | . . . Legs . | . . . Wheels 731 | 43 513 175 Hover . | . . . Flight . | . . . Fastest Speed 50 | 50 80 100 Average Speed 96 | 79 96 100 Slowest Speed 130 | 80 130 100 Overloaded Moves . | . . . Propulsion Burnouts . | . . . Robots Hopped . | . . . Cave-ins Triggered . | . . . Exploration Rate (%) 38 | 3 70 43 Regions Visited 2 Branch Regions 1 Pre-discovered Areas . | . . . Known Exits Taken . | . . . Unknown Exits Taken 2 | 1 1 . Scrap Searched 1 | . . 1 Spaces Dug . | . . . Terrain Destroyed 6 | . 6 . Melee . | . . . Projectile . | . . . AOE 6 | . 6 . Actions | -11 -10 -10 --------- Run | Scr Mat Min Total 997 | 56 719 222 Wait 119 | . 114 5 Move 730 | 43 512 175 Hop . | . . . Pick Up 26 | 4 19 3 Fast Attach 7 | 6 1 . Attach 9 | . 4 5 Detach . | . . . Swap 11 | . 9 2 Drop 4 | . 4 . Fire 91 | 3 56 32 Melee . | . . . Ram . | . . . Kick . | . . . Crush . | . . . Escape Stasis . | . . . Rewire . | . . . Trap . | . . . Miscellaneous . | . . . Route ------- -11/Scrapyard -10/Materials (discovered 3 exits: [*Mat x2] / [*Min]) -10/Mines History --------- Turn | Location | Event 24 | -11/Scrapyard | Discovered new exit (range 15) 58 | -11/Scrapyard | Entered Materials 145 | -10/Materials | Discovered new exit (range 8) 304 | -10/Materials | Build established: Mutant 511 | -10/Materials | Discovered new exit (range 16) 762 | -10/Materials | Discovered new exit (range 16) 856 | -10/Materials | Entered Mines 943 | -10/Mines | Assembled infested the area 976 | -10/Mines | Core integrity fell below 50% 1009 | -10/Mines | Core integrity fell below 20% 1130 | -10/Mines | Destroyed by G-47 Trooper with Particle Gun Last Messages --------------- 01095_ Found Flight Unit. 01095_ Found Med. Laser. 01096_ K-01 Serf collects debris. 01102_ U-05 Engineer builds a Wall. 01102_ K-01 Serf collects debris. 01106_ U-05 Engineer builds a Wall. 01107_ K-01 Serf collects debris. 01110_ U-05 Engineer lays Concrete. 01110_ K-01 Serf collects debris. 01110_ G-34 Mercenary destroyed. 01110_ Switching to secondary target: G-47 Trooper. 01111_ U-05 Engineer builds a Wall. 01113_ K-01 Serf collects debris. 01115_ U-05 Engineer lays Concrete. 01116_ K-01 Serf destroyed. 01116_ U-05 Engineer lays Concrete. 01121_ Lgt. Assault Rifle destroyed. 01124_ Hvy. EM Pulse Gun destroyed. 01126_ T-07 Excavator destroyed. 01129_ K-01 Serf collects debris. Map ----- +----------------------------------------------------+ | ## ############# #######???????##### ### | | ?## ##????????#### ## ##?????## * | | ??# ##????# #????## ## | | ??## ##??? #???## ### | | ???## #????? ### ##### ## ##?# | | ????# #????? #???# #######??# | | ????# #????? ??????# #????????# | | ???? ????????????# ####### ##????????# | | ????## ????????????## ##?????# ##?????????? | | ?????? ???????????## #??????# #??????????? | | ?????? ??????????## ##??????# #??????????? | | ??????###??????#### ###???????# #??????????? | | ???????????????# ##?????##### #??????????? | | ???????????????? #??????# #??????????? | | ?????????????????"" ##????# #####??????????? | | ????????????????""" ##???# #??????????????? | | ????????????????""" #???# #??????????????? | | ?????????????????? ##### #??????????????? | | ?????????????????????????# #??????????????? | | ?????????????????????????#u #######??????????????? | | ??????????????????????#### !#????????????????????? | | ????????????????????### # %##???????????????????? | | ???????????????????## ##??????????????????? | | ???????????????# ### #??????????????????? | | ???????????????# ##?????????????????? | | ???????????????# k @ #?????????????????? | | ???????????????##### #????????????????? | | ??????????????????# = #????????????????? | | ?????????????????# ##????????????????? | | ?????????????????# ####?????????????????? | | ?????????????????# r ????????????????????? | | ?????????????????## ???????????????????? | | ??????????????????# # d ### ???????????????????? | | ??????????????????# # #???###??????????????????? | | ?????????????????? ##g=?????????????????????????? | | ????????????????? ? ! ?????????????????????????? | | ???????????????? ? ?%= ?????????????????????????? | | ???????????????? ? #?????????????????????????? | | ???????????????????? ??????????????????????????? | | ????????????????????? ??????????????????????????? | | ?????????????????????????????????????????????????? | | ?????????????????????????????????????????????????? | | ?????????????????????????????????????????????????? | | ?????????????????????????????????????????????????? | | ?????????????????????????????????????????????????? | | ?????????????????????????????????????????????????? | | ?????????????????????????????????????????????????? | | ?????????????????????????????????????????????????? | | ?????????????????????????????????????????????????? | | ?????????????????????????????????????????????????? | +----------------------------------------------------+ Best States ------------- Heat Dissipation 25 Energy Generation 10 Energy Capacity 250 Matter Stores 300 Matter Capacity 300 Sight Range 16 Terrain Scan Density 10 Evasion (%) 44 Recoil Reduction 2 Item Schematics ----------------- None Robot Schematics ------------------ None Fabricated ------------ Nothing Alien Tech Used ----------------- None Achievements -------------- None Challenges ------------ None Game ------ Seed AccelerationNodeRailgun Manual? 0 Play Time 00:18:01 Cumulative 982.3 hours Start 2020.04.04 @ 22:21:37 End 2020.04.04 @ 22:42:53 Sessions 1 Manual Loads 0 Difficulty Rogue Special Mode None Game No. 380 Rogue 380 Adventurer 0 Explorer 0 Win Type - Total 24 Types 13/1/7/0/0/0/3 Lore% 96 Gallery% 97 Achievement% 83 Wizard Run 0 Options --------- ASCII 0 Keyboard 0 Movement Vi Keybinds 0 Fullscreen 0 Font 12/Crisp Map View 76x50 Tactical HUD 1 Map Filters NONE Filters NONE Steam 1 RUN: c9d096cf-ae07-4b6d-b18d-37667703bf9e